{"text_format":"1","workbook":"xlsx","n_sheets":2,"sheets":["Feuil1","Feuil2"],"not_rendered":{"charts":0,"images":0,"macros":1,"external_links":0,"defined_names":0,"comments":0,"pivot_tables":0},"unopened":[],"bounds":{"document_bytes":16777216,"sheet_cells":100000,"rows_first":2000,"rows_last":500,"rows_between":2000,"halvings":0,"cell_chars":16384,"cell_head_chars":4096},"cells_cut":0,"cells_raw":0,"read":"whole","date_system":"1900"}

{"sheet":"Feuil1","index":0,"n_rows":9,"n_cols":13,"rows_kept":9,"cut":false,"hidden":false,"merged":[[0,0,0,15]]}
["Arbre avec remise"]
["Détermine le nombre de billes de chaque couleur que ton urne contiendra.",null,null,null,null,null,null,null,null,null,null,"Avec remise","1 étape"]
["Couleur","Nombre",null,null,null,null,null,null,null,null,null,"Sans remise","2 étapes"]
["Bleue:",2,null,null,null,null,null,null,null,null,null,1,"3 étape"]
["Rouge:",5,null,null,null,null,null,null,null,null,null,null,2]
["Verte:",6]
["Jaune:",0]
[]
["Combien d'étape ton arbre contiendra-t-il? (1,2 ou 3)"]

{"sheet":"Feuil2","index":1,"n_rows":64,"n_cols":20,"rows_kept":64,"cut":false,"hidden":false,"merged":[]}
[null,null,null,null,null,null,null,null,null,null,null,null,null,null,null,2,2,2,{"$f":"P1*Q1","v":4},{"$f":"P1*Q1*R1","v":8}]
[null,null,null,null,null,null,null,null,null,null,null,null,null,null,null,2,5,3,{"$f":"P2*Q2","v":10},{"$f":"P2*Q2*R2","v":30}]
[null,null,null,null,null,null,null,null,null,null,null,null,null,null,null,2,6,3,12,36]
[null,null,null,null,null,null,null,null,null,null,null,null,null,null,null,5,2,2,10,20]
[null,null,null,null,null,null,null,null,null,null,null,null,null,null,null,5,5,2,25,50]
[null,null,null,null,null,null,null,null,null,null,null,null,null,null,null,5,6,3,30,90]
[null,null,null,null,null,null,null,null,null,null,null,null,null,null,null,6,2,3,12,36]
[null,null,null,null,null,null,null,null,null,null,null,null,null,null,null,6,5,2,30,60]
[null,null,null,null,null,null,null,null,null,null,null,null,null,null,null,6,6,2,36,72]
[null,null,null,null,null,null,null,null,null,null,null,null,null,null,null,2,3,3,6,18]
[null,null,null,null,null,null,null,null,null,null,null,null,null,null,null,2,3,3,6,18]
[null,null,null,null,null,null,null,null,null,null,null,null,null,null,null,2,3,2,6,12]
[null,null,null,null,null,null,null,null,null,null,null,null,null,null,null,2,2,2,4,8]
[null,null,null,null,null,null,null,null,null,null,null,null,null,null,null,2,2,3,4,12]
[null,null,null,null,null,null,null,null,null,null,null,null,null,null,null,2,2,3,4,12]
[null,null,null,null,null,null,null,null,null,null,null,null,null,null,null,2,2,2,4,8]
[null,null,null,null,null,null,null,null,null,null,null,null,null,null,null,3,2,2,6,12]
[null,null,null,null,null,null,null,null,null,null,null,null,null,null,null,3,2,3,6,18]
[null,null,null,null,null,null,null,null,null,null,null,null,null,null,null,3,2,3,6,18]
[null,null,null,null,null,null,null,null,null,null,null,null,null,null,null,3,2,2,6,12]
[null,null,null,null,null,null,null,null,null,null,null,null,null,null,null,3,3,2,9,18]
[null,null,null,null,null,null,null,null,null,null,null,null,null,null,null,3,3,3,9,27]
[null,null,null,null,null,null,null,null,null,null,null,null,null,null,null,3,3,3,9,27]
[null,null,null,null,null,null,null,null,null,null,null,null,null,null,null,3,3,2,9,18]
[null,null,null,null,null,null,null,null,null,null,null,null,null,null,null,3,3,2,9,18]
[null,null,null,null,null,null,null,null,null,null,null,null,null,null,null,3,3,3,9,27]
[null,null,null,null,null,null,null,null,null,null,null,null,null,null,null,3,3,3,9,27]
[null,null,null,null,null,null,null,null,null,null,null,null,null,null,null,3,3,2,9,18]
[null,null,null,null,null,null,null,null,null,null,null,null,null,null,null,3,2,2,6,12]
[null,null,null,null,null,null,null,null,null,null,null,null,null,null,null,3,2,3,6,18]
[null,null,null,null,null,null,null,null,null,null,null,null,null,null,null,3,2,3,6,18]
[null,null,null,null,null,null,null,null,null,null,null,null,null,null,null,3,2,2,6,12]
[null,null,null,null,null,null,null,null,null,null,null,null,null,null,null,3,2,2,6,12]
[null,null,null,null,null,null,null,null,null,null,null,null,null,null,null,3,2,3,6,18]
[null,null,null,null,null,null,null,null,null,null,null,null,null,null,null,3,2,3,6,18]
[null,null,null,null,null,null,null,null,null,null,null,null,null,null,null,3,2,2,6,12]
[null,null,null,null,null,null,null,null,null,null,null,null,null,null,null,3,3,2,9,18]
[null,null,null,null,null,null,null,null,null,null,null,null,null,null,null,3,3,3,9,27]
[null,null,null,null,null,null,null,null,null,null,null,null,null,null,null,3,3,3,9,27]
[null,null,null,null,null,null,null,null,null,null,null,null,null,null,null,3,3,2,9,18]
[null,null,null,null,null,null,null,null,null,null,null,null,null,null,null,3,3,2,9,18]
[null,null,null,null,null,null,null,null,null,null,null,null,null,null,null,3,3,3,9,27]
[null,null,null,null,null,null,null,null,null,null,null,null,null,null,null,3,3,3,9,27]
[null,null,null,null,null,null,null,null,null,null,null,null,null,null,null,3,3,2,9,18]
[null,null,null,null,null,null,null,null,null,null,null,null,null,null,null,3,2,2,6,12]
[null,null,null,null,null,null,null,null,null,null,null,null,null,null,null,3,2,3,6,18]
[null,null,null,null,null,null,null,null,null,null,null,null,null,null,null,3,2,3,6,18]
[null,null,null,null,null,null,null,null,null,null,null,null,null,null,null,3,2,2,6,12]
[null,null,null,null,null,null,null,null,null,null,null,null,null,null,null,2,2,2,4,8]
[null,null,null,null,null,null,null,null,null,null,null,null,null,null,null,2,2,3,4,12]
[null,null,null,null,null,null,null,null,null,null,null,null,null,null,null,2,2,3,4,12]
[null,null,null,null,null,null,null,null,null,null,null,null,null,null,null,2,2,2,4,8]
[null,null,null,null,null,null,null,null,null,null,null,null,null,null,null,2,3,2,6,12]
[null,null,null,null,null,null,null,null,null,null,null,null,null,null,null,2,3,3,6,18]
[null,null,null,null,null,null,null,null,null,null,null,null,null,null,null,2,3,3,6,18]
[null,null,null,null,null,null,null,null,null,null,null,null,null,null,null,2,3,2,6,12]
[null,null,null,null,null,null,null,null,null,null,null,null,null,null,null,2,3,2,6,12]
[null,null,null,null,null,null,null,null,null,null,null,null,null,null,null,2,3,3,6,18]
[null,null,null,null,null,null,null,null,null,null,null,null,null,null,null,2,3,3,6,18]
[null,null,null,null,null,null,null,null,null,null,null,null,null,null,null,2,3,2,6,12]
[null,null,null,null,null,null,null,null,null,null,null,null,null,null,null,2,2,2,4,8]
[null,null,null,null,null,null,null,null,null,null,null,null,null,null,null,2,2,3,4,12]
[null,null,null,null,null,null,null,null,null,null,null,null,null,null,null,2,2,3,4,12]
[null,null,null,null,null,null,null,null,null,null,null,null,null,null,null,2,2,2,4,8]